bitfinex/quotes_SOLUSD_20250630
["timestamp","ask_amount","ask_price","bid_price","bid_amount"]
[1751262785499,8.55939748,151.06,151.02,5.050274]
[1751262785699,13.60967148,151.06,151.02,5.050274]
[1751262786990,3.26337404,151.06,151.03,5.050274]
[1751262787195,18.64964886,151.06,151.03,5.050274]
[1751262787797,21.98816094,151.06,151.03,5.050274]
[1751262790001,27.28407524,151.06,151.03,5.050274]
[1751262790193,5.29560647,151.07,151.03,5.050274]
[1751262791705,10.34588047,151.07,151.03,5.050274]
[1751262793116,3.29934757,151.07,151.03,5.050274]
[1751262793316,18.64964886,151.07,151.03,5.050274]
[1751262793894,28.99521698,151.08,151.04,5.050274]
[1751262796402,23.94494298,151.08,151.04,5.050274]
[1751262796601,28.99521698,151.08,151.04,5.050274]
[1751262797396,32.30295041,151.08,151.04,5.050274]
[1751262799300,21.95738229,151.08,151.04,5.050274]
[1751262800005,3.30773343,151.08,151.05,5.050274]
[1751262800196,18.64964886,151.08,151.05,5.050274]
[1751262800397,18.64964886,151.08,151.06,5.050274]
[1751262800914,18.64964886,151.08,151.05,5.050274]
[1751262801220,22.03271942,151.08,151.05,5.050274]
[1751262802219,22.03271942,151.08,151.06,5.050274]
[1751262802600,146.9,151.09,151.07,5.050274]
[1751262802921,146.9,151.09,151.08,5.88]
[1751262804318,28.99478022,151.09,151.08,5.88]
[1751262805022,29.27910336,151.09,151.08,5.88]
[1751262805511,32.59334836,151.09,151.08,5.88]
[1751262807801,27.54307436,151.09,151.08,5.88]
[1751262808006,32.59334836,151.09,151.08,5.88]
[1751262811530,27.25875122,151.09,151.08,5.88]
[1751262812118,21.96389386,151.09,151.08,5.88]
[1751262814525,3.314245,151.09,151.08,5.88]
[1751262814725,5.29463741,151.1,151.08,5.88]
[1751262815217,8.5245951,151.1,151.08,5.88]
[1751262815618,5.29463741,151.1,151.08,5.88]
[1751262819129,8.5245951,151.1,151.08,5.88]
[1751262819516,11.86134036,151.1,151.08,5.88]
[1751262831837,8.63138267,151.1,151.08,5.88]
[1751262834028,11.86134036,151.1,151.08,5.88]
[1751262839187,23.94450622,151.09,151.08,5.88]
[1751262839533,27.17446391,151.09,151.08,5.88]
[1751262846158,27.45878705,151.09,151.08,5.88]
[1751262846969,27.45878705,151.09,151.08,5.74]
[1751262847543,27.45878705,151.09,151.04,4.87675769]
[1751262847738,27.45878705,151.09,151.05,5.74]
[1751262847943,27.45878705,151.09,151.04,4.87675769]
[1751262848158,27.45878705,151.09,151.05,5.74]
[1751262850360,27.45878705,151.09,151.06,5.74]
[1751262851648,27.45878705,151.09,151.05,3.22995769]
[1751262851857,27.45878705,151.09,151.06,5.74]
[1751262852870,27.45878705,151.09,151.07,5.74]
[1751262856377,27.45878705,151.09,151.05,3.22995769]
[1751262856546,27.45878705,151.09,151.06,5.74]
[1751262857573,27.45878705,151.09,151.07,5.74]
[1751262858478,27.45878705,151.09,151.05,3.22995769]
[1751262858664,27.45878705,151.09,151.06,5.74]
[1751262861170,27.45878705,151.09,151.05,3.22995769]
[1751262861357,27.45878705,151.09,151.04,4.87675769]
[1751262861557,27.45878705,151.09,151.05,5.74]
[1751262864379,24.22882936,151.09,151.05,8.96995769]
[1751262864680,24.22882936,151.09,151.06,3.22995769]
[1751262864878,8.63138549,151.1,151.07,3.22995769]
[1751262865082,3.33674526,151.1,151.07,3.22995769]
[1751262865277,18.64964886,151.1,151.07,3.22995769]
[1751262865462,21.94470003,151.1,151.08,2.48106335]
[1751262865663,21.94470003,151.1,151.07,3.22995769]
[1751262865877,21.94470003,151.1,151.08,2.48107791]
[1751262866177,21.94470003,151.1,151.07,3.22995769]
[1751262866377,21.94470003,151.1,151.08,2.48110222]
[1751262866563,21.94470003,151.1,151.07,3.22995769]
[1751262866858,21.94470003,151.1,151.08,2.48110222]
[1751262867063,21.94470003,151.1,151.07,3.22995769]
[1751262867263,21.94470003,151.1,151.08,2.48110991]
[1751262867478,21.94470003,151.1,151.07,3.22995769]
[1751262867882,21.94470003,151.1,151.06,3.22995769]
[1751262869212,21.94470003,151.1,151.05,11.03618226]
[1751262869373,21.94470003,151.1,151.06,3.22995769]
[1751262870287,25.17465772,151.1,151.06,3.22995769]
[1751262871382,25.17465772,151.1,151.06,8.52582081]
[1751262872283,25.17465772,151.1,151.06,5.29586312]
[1751262872483,25.17465772,151.1,151.06,8.52582081]
[1751262874090,25.17465772,151.1,151.06,3.22995769]
[1751262876594,25.17465772,151.1,151.07,2.48088321]
[1751262876796,25.17465772,151.1,151.08,2.48088321]
[1751262877093,30.46918656,151.1,151.06,3.22995769]
[1751262877296,30.46918656,151.1,151.07,2.48082724]
[1751262877466,30.46918656,151.1,151.08,2.48082724]
[1751262877671,30.46918656,151.1,151.06,3.22995769]
[1751262879195,146.9,151.14,151.08,26.0]
[1751262879373,21.87960655,151.13,151.09,5.74]
[1751262879687,150.1952693,151.14,151.1,3.22995769]
[1751262880580,3.22995769,151.12,151.09,5.74]
[1751262880777,21.87960655,151.13,151.09,11.03477603]
[1751262881485,21.87960655,151.13,151.09,14.26473372]
[1751262882195,18.64964886,151.13,151.1,3.22995769]
[1751262888091,18.64964886,151.13,151.1,8.52443511]
[1751262888593,11.37543849,151.15,151.12,3.22995769]
[1751262889681,11.37543849,151.15,151.12,8.52360146]
[1751262892994,11.37543849,151.15,151.12,3.22995769]
[1751262893200,11.37543849,151.15,151.1,3.22995769]
[1751262893201,3.22995769,151.14,151.1,3.22995769]
[1751262896897,3.24995769,151.14,151.1,3.22995769]
[1751262898410,18.66964886,151.14,151.11,3.22995769]
[1751262899807,18.66964886,151.14,151.1,3.22995769]
[1751262900514,0.02,151.14,151.13,3.22995769]
[1751262902288,0.02,151.14,151.09,7.8467]
[1751262902507,0.02,151.14,151.1,11.43739602]
[1751262902686,0.02,151.14,151.1,8.96995769]
[1751262903498,5.31310572,151.14,151.1,8.96995769]
[1751262906388,18.64964886,151.13,151.1,5.74]
[1751262906748,21.87960655,151.13,151.1,5.74]
[1751262906897,18.64964886,151.13,151.1,8.96995769]
[1751262907820,0.02,151.14,151.11,3.22995769]
[1751262908813,0.02,151.14,151.1,8.96995769]
[1751262910919,8.54312115,151.14,151.1,5.74]
[1751262911100,8.54312115,151.14,151.1,8.96995769]
[1751262912325,18.64964886,151.13,151.1,5.74]
[1751262913195,18.64964886,151.13,151.09,3.22995769]
[1751262913399,18.64964886,151.13,151.11,5.74]
[1751262915317,5.31316346,151.14,151.11,5.74]
[1751262916404,0.02,151.14,151.11,5.74]
[1751262917711,3.24995769,151.14,151.11,5.74]
[1751262922415,18.64964886,151.13,151.11,5.74]
[1751262922614,21.87960655,151.13,151.11,5.74]
[1751262924337,0.02,151.14,151.11,8.96995769]
[1751262925223,0.02,151.14,151.11,14.26403624]
[1751262929816,18.66964886,151.14,151.11,14.26403624]
[1751262934268,0.02,151.2,151.17,26.0]
[1751262934547,0.02,151.25,151.23,10.0]
[1751262934731,0.02,151.28,151.26,26.0]
[1751262934925,0.02,151.28,151.26,32.06]
[1751262935138,0.02,151.28,151.26,35.28995769]
[1751262935325,0.02,151.28,151.26,40.5788642]
[1751262935718,0.02,151.28,151.26,47.96382666]
[1751262936848,0.02,151.28,151.26,43.04051835]
[1751262937548,0.02,151.28,151.26,39.81056066]
[1751262937722,0.02,151.28,151.26,42.38083087]
[1751262942466,0.02,151.28,151.26,32.06]
[1751262944662,0.02,151.28,151.26,37.34890651]
[1751262947368,46.04964886,151.31,151.26,37.34890651]
[1751262947369,0.02,151.31,151.26,228.26906346]
[1751262947546,18.23878179,151.44,151.28,11.6214475]
[1751262947871,5.05192436,151.34,151.28,6.3052]
[1751262948040,5.05192436,151.34,151.28,32.3052]
[1751262948244,5.05192436,151.34,151.29,5.03192436]
[1751262948766,5.03192436,151.33,151.28,32.3052]
[1751262948970,5.03192436,151.33,151.28,37.33712436]
[1751262949278,5.03192436,151.33,151.28,11.33712436]
[1751262949764,5.03192436,151.33,151.29,26.0]
[1751262950845,5.03192436,151.32,151.29,26.0]
[1751262951368,5.03192436,151.32,151.27,2.23662674]
[1751262951553,5.03192436,151.31,151.28,2.2364789]
[1751262953068,5.03192436,151.3,151.28,2.2364789]
[1751262953581,10.31922067,151.31,151.28,2.2364789]
[1751262953745,5.03192436,151.29,151.28,28.2364789]
[1751262961990,0.02,151.34,151.32,26.0]
[1751262962284,0.02,151.34,151.32,6.4]
[1751262962462,0.02,151.34,151.32,37.43192436]
[1751262962784,0.02,151.34,151.28,7.5244449]
[1751262962785,18.64964886,151.32,151.28,7.5244449]
[1751262962977,23.68157322,151.32,151.29,30.0]
[1751262963180,5.03192436,151.33,151.28,38.55636926]
[1751262963387,23.70157322,151.34,151.29,5.03192436]
[1751262964293,23.70157322,151.34,151.3,5.28750826]
[1751262964972,5.03192436,151.33,151.3,5.28750826]
[1751262965171,0.02,151.34,151.32,5.03192436]
[1751262966072,0.02,151.34,151.3,18.50627891]
[1751262966276,0.02,151.34,151.32,5.03192436]
[1751262966481,0.02,151.34,151.33,5.28646005]
[1751262967785,0.02,151.34,151.31,5.03192436]
[1751262968086,0.02,151.34,151.3,18.25069501]
[1751262968388,0.02,151.34,151.31,30.0]
[1751262968588,0.02,151.34,151.31,35.03192436]
[1751262968785,5.05192436,151.34,151.31,30.0]
[1751262969986,5.05192436,151.34,151.31,35.28708932]
[1751262970887,0.02,151.41,151.33,37.29242436]
[1751262971088,0.02,151.41,151.4,31.03192436]
[1751262971292,0.02,151.41,151.38,27.98]
[1751262971675,0.02,151.41,151.37,31.03192436]
[1751262971874,0.02,151.41,151.38,31.03192436]
[1751262972187,0.02,151.41,151.4,5.03192436]
[1751262972494,0.02,151.41,151.39,10.31628924]
[1751262972881,0.02,151.41,151.4,5.03192436]
[1751262973474,0.02,151.41,151.4,10.31594021]
[1751262974191,0.02,151.41,151.4,12.7599384]
[1751262974394,0.02,151.41,151.4,10.31594021]
[1751262978582,0.02,151.41,151.4,5.03192436]
[1751262980599,0.02,151.41,151.4,10.31594021]
[1751262981782,0.02,151.41,151.4,12.75732019]
[1751262982177,0.02,151.41,151.4,10.31594021]
[1751262984002,0.02,151.41,151.4,5.03192436]
[1751262985109,0.02,151.41,151.4,10.31594021]
[1751262987805,0.02,151.41,151.4,5.28401585]
[1751262988304,0.02,151.41,151.39,5.28427778]
[1751262988510,0.28432314,151.38,151.33,35.28640217]
[1751262988678,1.5666,151.41,151.34,30.0]
[1751262988878,5.03192436,151.37,151.34,30.0]
[1751262989108,5.03192436,151.35,151.34,30.0]
[1751262989279,23.68157322,151.35,151.34,30.0]
[1751262989483,18.64964886,151.35,151.34,30.0]
[1751262989798,23.68157322,151.35,151.31,6.4]
[1751262989998,5.03192436,151.34,151.31,6.4]
[1751262991476,18.64964886,151.35,151.31,6.4]
[1751262991881,23.68157322,151.35,151.31,6.4]
[1751262992106,23.68157322,151.35,151.31,11.43192436]
[1751262992310,23.68157322,151.35,151.31,6.4]
[1751262992516,5.03192436,151.34,151.31,6.4]
[1751262993399,23.68157322,151.35,151.31,6.4]
[1751262993600,23.68157322,151.35,151.31,11.68711819]
[1751262995304,23.68157322,151.35,151.31,6.4]
[1751262995613,18.64964886,151.35,151.31,11.43192436]
[1751262995820,23.68157322,151.35,151.31,16.7190207]
[1751262997030,18.64964886,151.35,151.31,16.7190207]
[1751262997330,23.68157322,151.35,151.31,16.7190207]
[1751262998340,23.68157322,151.35,151.31,16.7590207]
[1751262998527,23.70157322,151.35,151.31,16.7590207]
[1751263003346,18.66964886,151.35,151.31,16.7590207]
[1751263003532,23.70157322,151.35,151.31,16.7590207]
[1751263004421,5.03192436,151.32,151.31,6.44]
[1751263006415,5.28647064,151.33,151.31,6.44]
[1751263006617,5.03192436,151.32,151.31,6.44]
[1751263007012,23.68157322,151.32,151.31,6.44]
[1751263007218,1.6373,151.34,151.31,6.44]
[1751263007552,6.66922436,151.34,151.31,6.44]
[1751263008152,1.6373,151.34,151.31,6.44]
[1751263008360,23.98589636,151.35,151.31,11.47192436]
[1751263009082,0.02,151.35,151.32,5.03192436]
[1751263010379,0.02,151.35,151.32,10.3186016]
[1751263015978,0.02,151.35,151.32,10.3186016]
[1751263016568,0.02,151.35,151.33,5.03192436]
[1751263016763,0.02,151.35,151.32,5.28667724]
[1751263016967,0.02,151.35,151.33,5.03192436]
[1751263017381,0.02,151.35,151.32,10.3186016]
[1751263018563,0.02,151.35,151.32,5.28667724]
[1751263018767,0.02,151.35,151.32,10.3186016]
[1751263021468,0.02,151.35,151.33,5.03192436]
[1751263022975,0.02,151.35,151.33,10.31828091]
[1751263025482,0.02,151.35,151.33,5.28635655]
[1751263027968,0.02,151.35,151.32,10.31862835]
[1751263028465,0.02,151.35,151.33,5.03192436]
[1751263028666,0.02,151.35,151.32,10.31862835]
[1751263029102,0.02,151.35,151.32,5.28670399]
[1751263029274,0.02,151.35,151.32,10.31862835]
[1751263030588,5.05192436,151.35,151.31,11.72702255]
[1751263030796,5.05192436,151.35,151.31,6.44]
[1751263031200,0.02,151.35,151.33,5.03192436]
[1751263031400,0.02,151.35,151.34,5.03192436]
[1751263034299,0.02,151.35,151.33,5.03192436]
[1751263034881,5.05192436,151.35,151.32,53.6]
[1751263035390,0.02,151.35,151.32,53.6]
[1751263036192,0.02,151.35,151.32,26.0]
[1751263036898,0.02,151.35,151.33,6.14]
[1751263037592,0.02,151.35,151.32,31.03192436]
[1751263037793,0.02,151.35,151.34,6.14]
[1751263038492,0.02,151.35,151.34,11.17192436]
[1751263038881,0.02,151.35,151.34,44.0180351]
[1751263043191,0.02,151.35,151.34,38.98611074]
[1751263043496,0.02,151.35,151.34,44.0180351]
[1751263048809,0.02,151.35,151.34,44.0580351]
[1751263056008,0.02,151.35,151.34,70.0580351]
[1751263059502,0.02,151.35,151.34,31.32611074]
[1751263059719,0.02,151.35,151.34,69.8380351]
[1751263060796,0.02,151.35,151.34,64.55192436]
[1751263063921,0.02,151.35,151.34,69.8380351]
[1751263068299,0.02,151.35,151.34,69.7780351]
[1751263073624,0.02,151.35,151.34,69.7380351]
[1751263074921,0.02,151.35,151.34,64.70611074]
[1751263077305,0.02,151.35,151.34,38.70611074]
[1751263077507,0.02,151.35,151.34,43.7380351]
[1751263078105,0.02,151.35,151.34,38.70611074]
[1751263078306,0.02,151.35,151.34,43.7380351]
[1751263079458,0.02,151.35,151.34,38.70611074]
[1751263079637,0.02,151.35,151.34,43.7380351]
[1751263082641,0.02,151.35,151.34,16.4180351]
[1751263082831,0.02,151.35,151.34,6.1]
[1751263083533,5.05192436,151.35,151.34,6.1]
[1751263083935,3.23888087,151.35,151.34,6.1]
[1751263084324,21.88852973,151.35,151.34,6.1]
[1751263085932,23.69938597,151.35,151.34,6.1]
[1751263089621,29.26947059,151.35,151.34,6.1]
[1751263104953,24.23973348,151.35,151.34,6.1]
[1751263105160,23.98370911,151.35,151.34,6.1]
[1751263106651,29.26947059,151.35,151.34,6.1]
[1751263107763,27.45921296,151.35,151.34,6.1]
[1751263120673,22.17345148,151.35,151.34,6.1]
[1751263121173,27.45921296,151.35,151.34,6.1]
[1751263121376,24.23973348,151.35,151.34,6.1]
[1751263121677,27.45921296,151.35,151.34,6.1]
[1751263125573,24.23973348,151.35,151.34,6.1]
[1751263125875,27.45921296,151.35,151.34,6.1]
[1751263136889,27.45921296,151.35,151.34,0.04]
[1751263183030,0.02,151.35,151.34,0.04]
[1751263183605,3.23947948,151.35,151.34,0.04]
[1751263187637,0.02,151.35,151.34,0.04]
[1751263187845,3.23947948,151.35,151.34,0.04]
[1751263189607,2.73947948,151.35,151.34,0.04]
[1751263194428,2.73947948,151.35,151.34,5.9]
[1751263197812,21.38912834,151.35,151.34,5.9]
[1751263200541,26.95921296,151.35,151.34,5.9]
[1751263200930,26.95921296,151.35,151.34,0.04]
[1751263222371,24.21973348,151.35,151.34,0.04]
[1751263222658,27.43921296,151.35,151.34,0.04]
[1751263249384,24.21973348,151.35,151.34,0.04]
[1751263249689,27.43921296,151.35,151.34,0.04]
[1751263258469,24.21973348,151.35,151.34,0.04]
[1751263258669,27.43921296,151.35,151.34,0.04]
[1751263259898,18.64964886,151.35,151.34,0.04]
[1751263260603,21.86912834,151.35,151.34,0.04]
[1751263260980,18.64964886,151.35,151.34,0.04]
[1751263265496,21.86912834,151.35,151.34,0.04]
[1751263266201,0.28432314,151.38,151.34,0.04]
[1751263266496,3.21947948,151.37,151.34,5.86]
[1751263268506,3.21947948,151.37,151.34,11.14608154]
[1751263269288,3.21947948,151.37,151.34,5.86]
[1751263269494,18.64964886,151.38,151.34,9.07947948]
[1751263269696,21.86912834,151.38,151.34,9.07947948]
[1751263270267,21.86912834,151.38,151.34,5.86]
[1751263271006,18.64964886,151.38,151.34,5.86]
[1751263271209,21.86912834,151.38,151.34,5.86]
[1751263272104,3.21947948,151.37,151.34,5.86]
[1751263272487,18.64964886,151.36,151.34,5.86]
[1751263272692,22.15345148,151.35,151.34,0.04]
[1751263274005,27.43921296,151.35,151.34,0.04]
[1751263305912,24.21973348,151.35,151.34,0.04]
[1751263306116,27.43921296,151.35,151.34,0.04]
[1751263306546,18.933972,151.35,151.34,0.04]
[1751263306921,18.64964886,151.35,151.34,0.04]
[1751263307442,18.933972,151.35,151.34,0.04]
[1751263307857,22.15345148,151.35,151.34,0.04]
[1751263309145,18.933972,151.35,151.34,0.04]
[1751263309342,22.15345148,151.35,151.34,0.04]
[1751263310143,18.933972,151.35,151.34,0.04]
[1751263310342,22.15345148,151.35,151.34,0.04]
[1751263317151,146.9,151.38,151.34,0.04]
[1751263317357,21.86912834,151.37,151.34,0.04]
[1751263320846,18.64964886,151.37,151.34,0.04]
[1751263321161,21.86912834,151.37,151.34,0.04]
[1751263321855,27.15419471,151.37,151.34,0.04]
[1751263323553,18.64964886,151.37,151.34,0.04]
[1751263323767,5.56878317,151.39,151.34,3.25947948]
[1751263324056,3.21947948,151.37,151.34,0.04]
[1751263325247,18.64964886,151.36,151.34,0.04]
[1751263325854,8.50461312,151.37,151.34,0.04]
[1751263326052,3.21947948,151.36,151.34,0.04]
[1751263331262,21.86912834,151.37,151.34,0.04]
[1751263331571,18.64964886,151.36,151.34,0.04]
[1751263334073,152.18409977,151.4,151.34,0.04]
[1751263334266,22.15345148,151.39,151.35,3.21947948]
[1751263334455,18.933972,151.39,151.35,3.21947948]
[1751263334844,3.21947948,151.36,151.34,0.04]
[1751263335169,21.86912834,151.35,151.34,0.04]
[1751263339845,27.43921296,151.35,151.34,0.04]
[1751263353158,24.21973348,151.35,151.34,0.04]
[1751263353378,27.43921296,151.35,151.34,0.04]
[1751263355798,24.21973348,151.35,151.34,0.04]
[1751263355987,27.43921296,151.35,151.34,0.04]
[1751263364894,22.15345148,151.35,151.34,0.04]
[1751263366198,27.43921296,151.35,151.34,0.04]
[1751263370393,22.15345148,151.35,151.34,0.04]
[1751263370695,18.64964886,151.35,151.34,0.04]
[1751263370898,21.86912834,151.35,151.34,0.04]
[1751263372008,18.64964886,151.35,151.34,0.04]
[1751263373905,21.86912834,151.35,151.34,0.04]
[1751263377608,18.64964886,151.34,151.32,5.4818263]
[1751263377795,21.86912834,151.34,151.32,5.4818263]
[1751263379590,21.86912834,151.35,151.32,5.4818263]
[1751263379991,3.21947948,151.34,151.32,5.4818263]
[1751263382216,21.86912834,151.35,151.32,5.4818263]
[1751263385823,18.64964886,151.35,151.32,5.4818263]
[1751263386125,21.86912834,151.35,151.32,5.4818263]
[1751263387621,21.66912834,151.35,151.32,5.4818263]
[1751263387802,26.95492315,151.35,151.32,5.4818263]
[1751263390723,26.97492315,151.35,151.32,5.4818263]
[1751263395535,18.64964886,151.33,151.32,5.4818263]
[1751263402636,18.64964886,151.34,151.32,5.4818263]
[1751263403625,0.02,151.35,151.32,5.4818263]
[1751263405210,18.64964886,151.34,151.32,5.4818263]
[1751263411943,27.15524739,151.34,151.32,5.4818263]
[1751263412113,18.64964886,151.33,151.32,5.4818263]
[1751263412320,21.86912834,151.33,151.32,5.4818263]
[1751263414748,18.64964886,151.33,151.32,5.4818263]
[1751263414942,21.86912834,151.33,151.32,5.4818263]
[1751263424449,18.64964886,151.33,151.32,5.4818263]
[1751263424627,21.86912834,151.33,151.32,5.4818263]
[1751263426441,18.64964886,151.33,151.32,5.4818263]
[1751263439646,18.64964886,151.34,151.32,5.4818263]
[1751263443357,21.88912834,151.35,151.32,5.4818263]
[1751263445166,27.17489875,151.35,151.32,5.4818263]
[1751263445868,3.21947948,151.34,151.32,5.4818263]
[1751263446047,23.95541927,151.35,151.32,5.4818263]
[1751263446254,3.21947948,151.34,151.32,5.4818263]
[1751263446455,8.50562874,151.34,151.32,5.4818263]
[1751263450569,18.64964886,151.33,151.32,5.4818263]
[1751263451170,21.86912834,151.33,151.32,5.4818263]
[1751263456980,18.64964886,151.33,151.32,5.4818263]
[1751263457384,23.93610891,151.33,151.32,5.4818263]
[1751263457582,27.15558839,151.33,151.32,5.4818263]
[1751263458279,21.86912834,151.33,151.32,5.4818263]
[1751263464685,22.17345148,151.35,151.32,5.4818263]
[1751263466267,18.64964886,151.33,151.32,5.4818263]
[1751263474498,21.86912834,151.33,151.32,5.4818263]
[1751263474703,18.64964886,151.33,151.32,5.4818263]
[1751263478301,21.86912834,151.33,151.32,5.4818263]
[1751263484310,22.15345148,151.33,151.32,5.4818263]
[1751263485107,27.43991153,151.33,151.32,5.4818263]
[1751263498815,24.22043205,151.33,151.32,5.4818263]
[1751263499139,27.43991153,151.33,151.32,5.4818263]
[1751263499635,18.933972,151.32,151.31,0.04]
[1751263499814,24.22078141,151.32,151.31,0.04]
[1751263500609,27.44026089,151.32,151.31,0.04]
[1751263506439,22.15345148,151.32,151.31,0.04]
[1751263506615,18.933972,151.32,151.31,0.04]
[1751263506936,22.15345148,151.32,151.31,0.04]
[1751263508037,27.44026089,151.32,151.31,0.04]
[1751263516252,18.933972,151.32,151.31,0.04]
[1751263516438,22.15345148,151.32,151.31,0.04]
[1751263521855,27.44026089,151.32,151.31,0.04]
[1751263527345,24.22078141,151.32,151.31,0.04]
[1751263527540,27.44026089,151.32,151.31,0.04]
[1751263535164,24.22078141,151.32,151.31,0.04]
[1751263535365,27.44026089,151.32,151.31,0.04]
[1751263540577,22.15345148,151.32,151.31,0.04]
[1751263548372,27.44026089,151.32,151.31,0.04]
[1751263557078,0.28432314,151.32,151.31,0.04]
[1751263557380,22.15345148,151.32,151.31,0.04]
[1751263561781,27.44026089,151.32,151.31,0.04]
[1751263565493,18.933972,151.32,151.31,0.04]
[1751263565788,22.15345148,151.32,151.31,0.04]
[1751263570001,18.933972,151.32,151.31,0.04]
[1751263570296,22.15345148,151.32,151.31,0.04]
[1751263571003,18.933972,151.32,151.31,0.04]
[1751263571181,18.64964886,151.32,151.31,3.25947948]
[1751263571378,18.64964886,151.32,151.31,0.04]
[1751263573491,21.86912834,151.32,151.31,0.04]
[1751263574199,18.64964886,151.32,151.31,0.04]
[1751263574382,21.86912834,151.32,151.31,0.04]
[1751263578406,18.64964886,151.32,151.31,0.04]
[1751263585217,21.86912834,151.32,151.31,0.04]
[1751263586725,18.64964886,151.32,151.31,0.04]
[1751263586905,21.86912834,151.32,151.31,0.04]
[1751263587997,18.64964886,151.32,151.31,0.04]
[1751263588625,21.86912834,151.32,151.31,0.04]
[1751263591120,18.64964886,151.32,151.31,0.04]
[1751263596823,18.64964886,151.34,151.31,3.25947948]
[1751263597231,18.64964886,151.34,151.31,0.04]
[1751263597538,18.64964886,151.34,151.31,3.25947948]
[1751263597740,18.66964886,151.35,151.32,3.21947948]
[1751263605435,18.66964886,151.35,151.31,8.5464654]
[1751263606134,18.66964886,151.35,151.32,3.21947948]
[1751263607417,18.66964886,151.35,151.31,0.04]
[1751263607623,3.23947948,151.35,151.31,3.25947948]
[1751263608014,18.64964886,151.34,151.31,0.04]
[1751263608308,18.64964886,151.34,151.31,3.25947948]
[1751263608741,21.88912834,151.35,151.31,3.25947948]
[1751263608925,21.88912834,151.35,151.31,0.04]
[1751263609115,21.88912834,151.35,151.31,3.25947948]
[1751263609441,21.88912834,151.35,151.31,8.54663743]
[1751263611543,21.88912834,151.35,151.31,3.25947948]
[1751263618442,18.66964886,151.35,151.31,3.25947948]
[1751263618647,21.88912834,151.35,151.31,3.25947948]
[1751263619974,21.88912834,151.35,151.31,8.54663431]
[1751263621335,3.21947948,151.33,151.31,0.04]
[1751263623136,3.21947948,151.33,151.32,5.62]
[1751263625739,18.64964886,151.34,151.32,5.62]
[1751263625938,21.86912834,151.34,151.32,5.62]
[1751263626658,27.15525062,151.34,151.32,5.62]
[1751263628358,21.86912834,151.34,151.32,5.62]
[1751263629965,27.15525119,151.34,151.32,5.62]
[1751263632354,21.86912834,151.34,151.32,5.62]
[1751263636858,18.64964886,151.34,151.32,5.62]
[1751263637057,21.86912834,151.34,151.32,5.62]
[1751263642152,0.02,151.35,151.32,5.62]
[1751263642352,18.64964886,151.33,151.32,5.62]
[1751263643785,18.64964886,151.33,151.32,10.90680941]
[1751263651785,0.02,151.35,151.32,14.12628889]
[1751263651985,0.02,151.35,151.33,3.21947948]
[1751263652657,0.02,151.35,151.34,3.21947948]
[1751263653872,0.02,151.35,151.34,8.50559022]
[1751263654698,0.02,151.35,151.34,5.28611074]
[1751263654885,0.02,151.35,151.34,8.50559022]
[1751263659495,0.02,151.35,151.34,5.28611074]
[1751263659673,0.02,151.35,151.34,8.50559022]
[1751263660690,0.02,151.35,151.34,26.0]
[1751263662677,0.02,151.35,151.34,31.28611074]
[1751263662995,0.02,151.35,151.34,34.50559022]
[1751263671098,0.02,151.35,151.34,31.28611074]
[1751263671298,0.02,151.35,151.34,34.50559022]
[1751263676904,0.02,151.35,151.34,31.28611074]
[1751263678998,0.02,151.35,151.34,34.50559022]
[1751263681306,0.02,151.35,151.34,31.28611074]
[1751263681514,0.02,151.35,151.34,34.50559022]
[1751263686216,0.02,151.35,151.34,31.28611074]
[1751263686518,0.02,151.35,151.34,34.50559022]
[1751263688016,0.02,151.35,151.34,34.54559022]
[1751263688404,0.02,151.35,151.34,31.32611074]
[1751263688606,0.02,151.35,151.34,34.54559022]
[1751263695414,0.02,151.35,151.34,31.32611074]
[1751263695614,0.02,151.35,151.34,34.54559022]
[1751263704332,0.02,151.35,151.34,10.92611074]
[1751263704507,0.02,151.35,151.34,14.14559022]
[1751263706431,0.02,151.35,151.34,10.92611074]